fUST/lending_fUST_20250509
["ID","MTS","AMOUNT","RATE_DAILY","PERIOD"]
[360434370,1746793832888,-500.0,0.00010673,2]
[360434371,1746793832898,-500.0,0.00010673,2]
[360434372,1746793832908,-269.78067114,0.00010673,2]
[360434373,1746793832917,-500.0,0.00010673,2]
[360434374,1746793832927,-342.9003977,0.00010673,2]
[360434375,1746793832936,-501.3195648,0.00010673,2]
[360434376,1746793832946,-500.0,0.00010673,2]
[360434377,1746793832955,-500.0,0.00010673,2]
[360434378,1746793832964,-500.0,0.00010673,2]
[360434379,1746793832974,-500.0,0.00010673,2]
[360434380,1746793832983,-500.0,0.00010673,2]
[360434381,1746793832993,-508.79069719,0.00010673,2]
[360434382,1746793833002,-500.0,0.00010673,2]
[360434383,1746793833012,-157.929,0.00010673,2]
[360434384,1746793833022,-13793.85,0.00010681,2]
[360434385,1746793833032,-250.0,0.00010683,2]
[360434386,1746793833042,-151.043,0.00010683,2]
[360434387,1746793833051,-204.712,0.00010683,2]
[360434388,1746793833061,-244.659,0.00010683,2]
[360434389,1746793833070,-250.0,0.00010683,2]
[360434390,1746793833080,-257.011,0.00010683,2]
[360434391,1746793833090,-213.831,0.00010683,2]
[360434392,1746793833099,-160.83300246,0.00010686,2]
[360434393,1746793833109,-404.0,0.00010692,2]
[360434394,1746793833118,-546.0,0.00010692,2]
[360434395,1746793833128,-506.47258563,0.00010694,2]
[360434396,1746793833138,-200.0,0.00010694,10]
[360434397,1746793833150,-200.0,0.00010694,10]
[360434398,1746793833160,-200.0,0.00010694,10]
[360434399,1746793833170,-200.0,0.00010694,10]
[360434400,1746793833179,-200.0,0.00010694,10]
[360434401,1746793833190,-200.0,0.00010694,10]
[360434402,1746793833362,-200.0,0.00010694,10]
[360434403,1746793833373,-200.0,0.00010694,10]
[360434404,1746793833384,-200.0,0.00010694,10]
[360434405,1746793833394,-200.0,0.00010694,10]
[360434406,1746793833405,-200.0,0.00010694,10]
[360434407,1746793833414,-200.0,0.00010694,10]
[360434408,1746793833424,-200.0,0.00010694,10]
[360434409,1746793833433,-200.0,0.00010694,10]
[360434410,1746793833443,-200.0,0.00010694,10]
[360434411,1746793833452,-200.0,0.00010694,10]
[360434412,1746793833462,-200.0,0.00010694,10]
[360434413,1746793833471,-200.0,0.00010694,10]
[360434414,1746793833480,-199.12992,0.00010694,10]
[360434415,1746793833490,-360.0,0.00010694,2]
[360434416,1746793833499,-224.750401,0.00010694,2]
[360434417,1746793833509,-360.0,0.00010694,2]
[360434418,1746793833518,-360.0,0.00010694,2]
[360434419,1746793833528,-360.0,0.00010694,2]
[360434420,1746793833537,-360.0,0.00010694,2]
[360434421,1746793833547,-360.0,0.00010694,2]
[360434422,1746793833556,-360.0,0.00010694,2]
[360434423,1746793833566,-9524.85853044,0.00010694,2]
[360434427,1746793838809,-5014.25238701,0.00010694,2]
[360434428,1746793838821,-15062.58067098,0.00010694,2]
[360434438,1746793841028,-4011.75420108,0.00010694,2]
[360434531,1746793843750,-2062.0,0.00010694,2]
[360434865,1746793846918,-8575.941686,0.00010694,2]
[360446579,1746794480924,1147774.99332582,0.00010201,2]
[360446634,1746795028500,-204.0677483,0.000102,2]
[360446654,1746795032178,-170.61535076,0.000102,2]
[360446655,1746795036283,-320.7353411,0.000102,2]
[360446755,1746795042854,-504.58155984,0.000102,2]
[360446757,1746795042864,-1077.46537092,0.00010592,2]
[360446759,1746795042872,-355.84167478,0.00010592,2]
[360446760,1746795042882,-368.5028709,0.0001064,2]
[360446761,1746795042891,-300.0,0.00010672,2]
[360446762,1746795042900,-500.0,0.00010673,2]
[360446763,1746795042909,-500.0,0.00010673,2]
[360446764,1746795042919,-500.0,0.00010673,2]
[360446765,1746795042928,-500.0,0.00010673,2]
[360446766,1746795042938,-500.0,0.00010673,2]
[360446767,1746795042947,-500.0,0.00010673,2]
[360446768,1746795042957,-500.0,0.00010673,2]
[360446769,1746795042967,-152.31292722,0.00010673,2]
[360446770,1746795042976,-500.0,0.00010673,2]
[360446771,1746795042986,-551.9170859,0.00010673,2]
[360446772,1746795042995,-500.0,0.00010673,2]
[360446773,1746795043004,-500.0,0.00010673,2]
[360446774,1746795043014,-500.0,0.00010673,2]
[360446775,1746795043023,-500.0,0.00010673,2]
[360446776,1746795043033,-500.0,0.00010673,2]
[360446777,1746795043043,-500.0,0.00010673,2]
[360446778,1746795043053,-500.0,0.00010673,2]
[360446779,1746795043062,-500.0,0.00010673,2]
[360446780,1746795043072,-500.0,0.00010673,2]
[360446781,1746795043081,-500.0,0.00010673,2]
[360446782,1746795043091,-1200.0,0.0001069,2]
[360446783,1746795043101,-9165.87661099,0.0001069,2]
[360446790,1746795045922,-414.1104975,0.00010673,2]
[360446791,1746795045932,-4378.97872249,0.0001069,2]
[360446792,1746795045943,-17217.085597,0.0001069,2]
[360446815,1746795234876,500.0,0.0001,2]
[360446817,1746795297520,498.54,0.0001,2]
[360446955,1746796232034,-500.0,0.0001031,2]
[360446957,1746796232044,-827.91656124,0.000105,2]
[360446959,1746796232054,-566.00623734,0.00010592,2]
[360446961,1746796232063,-204.0677483,0.00010592,2]
[360446963,1746796232073,-331.6525838,0.0001064,2]
[360446965,1746796232082,-300.0,0.00010671,2]
[360446967,1746796232091,-300.0,0.00010671,2]
[360446969,1746796232101,-270.0,0.00010671,2]
[360446971,1746796232110,-789.0,0.00010671,2]
[360446973,1746796232119,-332.32466823,0.00010672,2]
[360446975,1746796232128,-616.36448858,0.00010672,2]
[360446977,1746796232139,-370.30893259,0.00010672,2]
[360446979,1746796232148,-500.0,0.00010672,2]
[360446980,1746796232157,-402.10223563,0.00010672,2]
[360446982,1746796232167,-500.0,0.00010672,2]
[360446984,1746796232176,-500.0,0.00010672,2]
[360446985,1746796232185,-500.0,0.00010672,2]
[360446987,1746796232195,-500.0,0.00010672,2]
[360446989,1746796232204,-500.0,0.00010672,2]
[360446991,1746796232214,-500.0,0.00010672,2]
[360446993,1746796232223,-500.0,0.00010672,2]
[360446994,1746796232232,-437.04008505,0.00010673,2]
[360446995,1746796232242,-500.0,0.00010673,2]
[360446996,1746796232251,-500.0,0.00010673,2]
[360446998,1746796232260,-500.0,0.00010673,2]
[360447000,1746796232270,-500.0,0.00010673,2]
[360447002,1746796232279,-500.0,0.00010673,2]
[360447003,1746796232289,-500.0,0.00010673,2]
[360447005,1746796232298,-412.0160776,0.00010673,2]
[360447007,1746796232308,-500.0,0.00010673,2]
[360447009,1746796232318,-500.0,0.00010673,2]
[360447010,1746796232327,-500.0,0.00010673,2]
[360447011,1746796232336,-500.0,0.00010673,2]
[360447013,1746796232345,-500.0,0.00010673,2]
[360447015,1746796232354,-500.0,0.00010673,2]
[360447017,1746796232363,-500.0,0.00010673,2]
[360447019,1746796232373,-500.0,0.00010673,2]
[360447021,1746796232382,-501.50146304,0.00010673,2]
[360447023,1746796232391,-500.0,0.00010673,2]
[360447025,1746796232400,-503.0692065,0.00010673,2]
[360447027,1746796232410,-500.0,0.00010673,2]
[360447029,1746796232419,-500.0,0.00010673,2]
[360447031,1746796232428,-500.0,0.00010673,2]
[360447032,1746796232438,-500.0,0.00010673,2]
[360447034,1746796232448,-293.26098778,0.00010689,2]
[360447035,1746796232457,-223.78010795,0.00010689,2]
[360447036,1746796232467,-156.64607556,0.00010689,2]
[360447037,1746796232476,-560.67034108,0.00010689,2]
[360447038,1746796232486,-157.929,0.00010689,2]
[360447039,1746796232495,-1826.27872775,0.00010689,2]
[360447040,1746796232507,-2086.42539331,0.00010689,2]
[360447041,1746796232516,-22872.63735203,0.0001069,2]
[360448180,1746796618580,3518.9439651,9.683e-05,2]
[360448205,1746797280581,316.0,0.000155,30]
[360448242,1746797432026,-522.35861048,0.00010428,2]
[360448243,1746797432036,-4178.23798856,0.00010591,2]
[360448244,1746797432045,-1283.0,0.000106,2]
[360448245,1746797432055,-432.4301128,0.0001064,2]
[360448246,1746797432065,-277.72268267,0.00010666,2]
[360448247,1746797432074,-300.0,0.00010671,2]
[360448248,1746797432083,-500.0,0.00010672,2]
[360448249,1746797432092,-500.0,0.00010672,2]
[360448250,1746797432102,-438.30963571,0.00010672,2]
[360448251,1746797432111,-500.0,0.00010673,2]
[360448252,1746797432120,-500.0,0.00010673,2]
[360448253,1746797432129,-500.0,0.00010673,2]
[360448254,1746797432138,-406.66237181,0.00010673,2]
[360448255,1746797432147,-500.0,0.00010673,2]
[360448256,1746797432156,-500.0,0.00010673,2]
[360448257,1746797432165,-500.0,0.00010673,2]
[360448258,1746797432174,-500.0,0.00010673,2]
[360448259,1746797432183,-500.0,0.00010673,2]
[360448260,1746797432192,-500.0,0.00010673,2]
[360448261,1746797432201,-500.0,0.00010673,2]
[360448262,1746797432210,-500.0,0.00010673,2]
[360448263,1746797432219,-500.0,0.00010673,2]
[360448264,1746797432228,-500.0,0.00010673,2]
[360448265,1746797432237,-500.0,0.00010673,2]
[360448266,1746797432247,-500.0,0.00010673,2]
[360448267,1746797432256,-392.46923875,0.00010689,2]
[360448268,1746797432265,-264.85151967,0.00010689,2]
[360448269,1746797432274,-157.92902138,0.00010689,2]
[360448270,1746797432283,-7871.30503758,0.0001069,2]
[360448271,1746797432294,-16300.83303196,0.0001069,2]
[360448272,1746797432310,-43236.83224276,0.0001069,2]
[360448273,1746797432322,-160822.4090996,0.0001069,2]
[360448984,1746797446216,-5872.25,0.0001069,2]
[360448986,1746797446228,-3427.8,0.0001069,2]
[360448993,1746797446286,-22314.8584674,0.0001069,2]
[360449101,1746798018645,990.6931756,9.69e-05,2]
[360449177,1746798632256,-389.1871015,0.0001064,2]
[360449179,1746798632266,-157.31852663,0.0001067,2]
[360449181,1746798632284,-42.68147337,0.0001067,2]
[360449183,1746798632293,-233.87353317,0.0001067,2]
[360449185,1746798632303,-300.0,0.00010688,2]
[360449187,1746798632313,-5000.0,0.00010689,2]
[360449189,1746798632323,-88411.41274084,0.0001069,2]
[360449197,1746798632387,-420.49297841,0.0001069,2]
[360449256,1746798638392,-1366.34904411,0.0001069,2]
[360449261,1746798638448,-1733.180202,0.0001069,2]
[360449264,1746798638466,-2385.4,0.0001069,2]
[360449266,1746798638481,-41507.59447515,0.0001069,2]
[360449269,1746798638493,-5600.97556475,0.0001069,2]
[360449274,1746798638541,-286.97427163,0.0001069,2]
[360449611,1746798643468,-15495.4975799,0.0001069,2]
[360449613,1746798643483,-89978.31170795,0.0001069,2]
[360449616,1746798643494,-1029.5,0.0001069,2]
[360451025,1746798676360,5611.540852,9.77e-05,2]
[360451032,1746798921013,5622.7876769,9.653e-05,2]
[360451689,1746799837976,2357.4943304,0.0001,2]
[360451734,1746799838488,-124.9956696,0.0001,2]
[360451736,1746799838513,-154.00090744,0.00010104,3]
[360451738,1746799838528,-74.03284156,0.00010104,3]
[360451740,1746799838538,-228.033749,0.00010329,3]
[360451742,1746799838547,-467.86793053,0.00010402,2]
[360451744,1746799838557,-129.28238428,0.0001048,2]
[360451747,1746799838568,-98.75136472,0.0001048,2]
[360451749,1746799838578,-228.033749,0.00010553,3]
[360451751,1746799838587,-422.2027796,0.0001064,2]
[360451753,1746799838596,-300.0,0.00010671,2]
[360451755,1746799838606,-300.0,0.00010671,2]
[360451757,1746799838615,-800.0,0.00010671,2]
[360451759,1746799838625,-300.0,0.00010671,2]
[360451762,1746799838634,-6258.87346156,0.00010672,2]
[360451765,1746799838643,-155.93171816,0.00010673,2]
[360451767,1746799838653,-500.0,0.00010673,2]
[360451769,1746799838662,-500.0,0.00010673,2]
[360451771,1746799838671,-500.0,0.00010673,2]
[360451773,1746799838681,-500.0,0.00010673,2]
[360451774,1746799838691,-502.04367879,0.00010673,2]
[360451775,1746799838701,-640.50342442,0.00010673,2]
[360451777,1746799838711,-504.24675164,0.00010673,2]
[360451779,1746799838720,-500.0,0.00010673,2]
[360451781,1746799838729,-500.0,0.00010673,2]
[360451783,1746799838740,-500.0,0.00010673,2]
[360451785,1746799838749,-500.0,0.00010673,2]
[360451787,1746799838759,-500.0,0.00010673,2]
[360451789,1746799838769,-500.0,0.00010673,2]
[360451791,1746799838778,-500.0,0.00010673,2]
[360451794,1746799838788,-500.0,0.00010673,2]
[360451795,1746799838799,-500.0,0.00010673,2]
[360451797,1746799838808,-500.0,0.00010673,2]
[360451799,1746799838818,-185.39606377,0.00010689,2]
[360451801,1746799838827,-274.72846713,0.00010689,2]
[360451803,1746799838837,-16193.58854121,0.0001069,2]
[360452289,1746799843708,-7302.03074009,0.0001069,2]
[360452292,1746799843729,-45040.38367571,0.0001069,2]
[360455623,1746799882814,-256.58266515,0.00010004,2]
[360456695,1746799895659,-162.06776293,0.00010004,2]
[360457979,1746799910643,-229.35617974,0.00010004,2]
[360458274,1746799925683,-301.99339218,0.00010004,2]
[360458275,1746799940724,-333.26918358,0.00010004,2]
[360458276,1746799956166,-218.74574511,0.00010004,2]
[360458277,1746799970591,-339.16795972,0.00010004,2]
[360458279,1746799985648,-201.01492869,0.00010004,2]
[360458280,1746799985670,-79.34774529,0.00010004,2]
[360458283,1746800000624,-162.96596765,0.00010004,2]
[360458285,1746800015701,-187.0,0.00010004,2]
[360458287,1746800031283,-554.7847564,0.00010004,2]
[360458289,1746800045683,-65.71987436,0.00010004,2]
[360458290,1746800045707,-264.0775468,0.00010004,2]
[360458328,1746800732866,254.5547,7.6e-05,14]
[360458398,1746801037413,-161.9232651,9.598e-05,2]
[360458399,1746801037423,-300.0,0.00010596,2]
[360458400,1746801037433,-927.0,0.00010596,2]
[360458401,1746801037442,-6805.7148381,0.00010597,2]
[360458411,1746801038532,-6226.78088488,0.00010597,2]
[360458412,1746801038542,-1116.55148919,0.000106,2]
[360458413,1746801038557,-8512.95257225,0.000106,2]
[360458414,1746801038567,-362.674728,0.000106,2]
[360458415,1746801038577,-314.5462252,0.000106,2]
[360458416,1746801038587,-437.5300122,0.0001064,2]
[360458417,1746801038596,-500.0,0.00010673,2]
[360458418,1746801038606,-500.0,0.00010673,2]
[360458420,1746801038616,-500.0,0.00010673,2]
[360458421,1746801038625,-500.0,0.00010673,2]
[360458423,1746801038635,-500.0,0.00010673,2]
[360458424,1746801038644,-209.89646235,0.00010673,2]
[360458427,1746801038666,-290.10353765,0.00010673,2]
[360458429,1746801038676,-500.0,0.00010673,2]
[360458431,1746801038686,-500.0,0.00010673,2]
[360458433,1746801038696,-500.0,0.00010673,2]
[360458435,1746801038705,-500.0,0.00010673,2]
[360458436,1746801038714,-500.0,0.00010673,2]
[360458438,1746801038724,-500.0,0.00010673,2]
[360458440,1746801038734,-335.21310024,0.00010673,2]
[360458443,1746801038745,-164.78689976,0.00010673,2]
[360458445,1746801038754,-213.42627048,0.00010684,2]
[360458447,1746801038763,-192.30992699,0.00010684,2]
[360458449,1746801038773,-1841.41049177,0.00010685,2]
[360458704,1746801041129,-93.50105741,0.00010596,2]
[360458883,1746801043740,-64.04748789,0.00010596,2]
[360458885,1746801043750,-5600.74110153,0.00010685,2]
[360459259,1746801047030,-619.48544612,0.00010685,2]
[360459261,1746801047041,-110441.96865472,0.0001069,2]
[360459264,1746801047053,-7369.1058283,0.0001069,2]
[360459266,1746801047066,-1499.34027642,0.0001069,2]
[360463246,1746802237201,-465.14339652,0.00010377,2]
[360463247,1746802237211,-500.0,0.00010552,2]
[360463248,1746802237221,-1661.33231718,0.0001059,2]
[360463249,1746802237231,-424.1262065,0.0001064,2]
[360463250,1746802237240,-300.0,0.00010669,2]
[360463251,1746802237249,-5000.0,0.0001067,2]
[360463252,1746802237258,-201.0,0.0001067,2]
[360463253,1746802237268,-246.17573375,0.0001067,2]
[360463254,1746802237314,-53.82426625,0.0001067,2]
[360463256,1746802237323,-500.0,0.00010673,2]
[360463258,1746802237334,-500.0,0.00010673,2]
[360463261,1746802237343,-500.0,0.00010673,2]
[360463264,1746802237352,-432.27088098,0.00010673,2]
[360463267,1746802237362,-500.0,0.00010673,2]
[360463269,1746802237371,-505.67184414,0.00010673,2]
[360463270,1746802237381,-500.0,0.00010673,2]
[360463271,1746802237390,-500.0,0.00010673,2]
[360463272,1746802237399,-500.0,0.00010673,2]
[360463273,1746802237408,-500.0,0.00010673,2]
[360463274,1746802237417,-500.0,0.00010673,2]
[360463275,1746802237427,-500.0,0.00010673,2]
[360463276,1746802237437,-500.0,0.00010673,2]
[360463277,1746802237447,-500.0,0.00010673,2]
[360463278,1746802237457,-500.0,0.00010673,2]
[360463279,1746802237466,-207.4,0.00010684,2]
[360463280,1746802237475,-85762.02489504,0.0001069,2]
[360463296,1746802237790,-487.43904642,0.0001069,2]
[360463628,1746802243064,-17942.00233869,0.0001069,2]
[360463909,1746802246073,-606.939698,0.0001069,2]
[360464058,1746802248305,-686.581022,0.0001069,2]
[360465683,1746802267682,-243.51755218,8.376e-05,2]
[360465954,1746802282558,-391.91954702,8.376e-05,2]
[360465956,1746802298056,-300.0,8.376e-05,2]
[360465957,1746802311290,-201.01492869,8.376e-05,2]
[360465958,1746802325844,-457.04729428,8.376e-05,2]
[360465960,1746802341155,-1383.0,8.376e-05,2]
[360465961,1746802341211,-23.50067783,8.376e-05,2]
[360465962,1746802341234,-226.49932217,9.746e-05,2]
[360465963,1746802355741,-250.0,9.746e-05,2]
[360465966,1746802370672,-300.00657529,9.746e-05,2]
[360465967,1746802385812,-300.61983829,9.746e-05,2]
[360465970,1746802400680,-430.9797275,9.746e-05,2]
[360465973,1746802415614,-319.20889788,9.746e-05,2]
[360465974,1746802430668,-199.02021691,9.746e-05,2]
[360465975,1746802445716,-173.9505747,9.746e-05,2]
[360465976,1746802460682,-202.00503541,9.746e-05,2]
[360465978,1746802475762,-286.26545636,9.746e-05,2]
[360465980,1746802490678,-155.01581947,0.0001,2]
[360465982,1746802506878,-152.0,8.376e-05,2]
[360465983,1746802520612,-324.47898229,8.376e-05,2]
[360465985,1746802534647,-2498.0,8.376e-05,2]
[360465986,1746802557217,-25.52101771,8.376e-05,2]
[360465987,1746802557240,-269.5252097,9.732e-05,2]
[360465988,1746802557262,-122.4747903,9.746e-05,2]
[360465989,1746802566309,-250.0,9.746e-05,2]
[360465991,1746802580689,-167.06460083,9.746e-05,2]
[360465992,1746802596915,-165.90120861,9.746e-05,2]
[360465993,1746802611336,-321.68547188,9.746e-05,2]
[360465994,1746802626279,-178.31452812,9.746e-05,2]
[360465996,1746802644081,-165.56875787,9.746e-05,2]
[360465998,1746802655643,-222.85066714,9.746e-05,2]
[360466000,1746802670705,-199.65814054,9.746e-05,2]
[360466001,1746802686159,-300.0,9.746e-05,2]
[360466003,1746802701354,-296.0,9.746e-05,2]
[360466005,1746802716167,-183.0592021,9.746e-05,2]
[360466006,1746802739009,-425.29629828,9.472e-05,2]
[360466007,1746802745675,-157.77534564,9.472e-05,2]
[360466008,1746802761648,-165.38228071,9.472e-05,2]
[360466009,1746802775696,-198.4061188,9.472e-05,2]
[360466011,1746802791221,-220.42153347,9.472e-05,2]
[360466013,1746802796204,-1342.0,9.472e-05,2]
[360466015,1746802800015,-90.7184231,9.472e-05,2]
[360466020,1746802970246,-409.2815769,9.472e-05,2]
[360466021,1746802988964,-290.24904074,9.472e-05,2]
[360466022,1746802991479,-1431.0,9.472e-05,2]
[360466023,1746803000756,-182.08292402,9.472e-05,2]
[360466024,1746803016192,-87.38645834,9.472e-05,2]
[360466025,1746803016215,-135.70584783,9.941e-05,2]
[360466026,1746803031372,-300.0,9.941e-05,2]
[360466027,1746803045783,-64.29415217,9.941e-05,2]
[360466028,1746803060735,-152.92905861,0.0001,2]
[360466029,1746803075691,-172.83538393,0.0001,2]
[360466030,1746803090734,-101.05555746,0.0001,2]
[360466038,1746803202263,-158.75407366,9.472e-05,2]
[360466040,1746803209703,-300.0,9.472e-05,2]
[360466043,1746803221272,-182.06551844,9.472e-05,2]
[360466045,1746803225910,-367.35498495,9.472e-05,2]
[360466046,1746803231383,-350.57949661,9.472e-05,2]
[360466048,1746803239028,-260.18414038,9.472e-05,2]
[360466049,1746803250364,-355.6768387,9.472e-05,2]
[360466050,1746803258584,-225.38494726,9.472e-05,2]
[360466122,1746803432176,-600.0,0.00010266,2]
[360466123,1746803432186,-1000.0,0.00010277,2]
[360466124,1746803432196,-408.34526944,0.00010373,2]
[360466125,1746803432211,-191.65473056,0.00010373,2]
[360466126,1746803432220,-300.0,0.00010564,2]
[360466127,1746803432230,-300.0,0.00010565,2]
[360466128,1746803432239,-300.0,0.00010565,2]
[360466129,1746803432248,-300.0,0.00010565,2]
[360466130,1746803432258,-1200.0,0.00010565,2]
[360466131,1746803432267,-499.48129762,0.00010566,2]
[360466132,1746803432276,-500.0,0.00010566,2]
[360466133,1746803432286,-500.0,0.00010566,2]
[360466134,1746803432295,-566.51039838,0.00010566,2]
[360466135,1746803432305,-500.0,0.00010566,2]
[360466136,1746803432315,-500.0,0.00010566,2]
[360466137,1746803432324,-500.0,0.00010566,2]
[360466138,1746803432333,-500.0,0.00010566,2]
[360466139,1746803432343,-500.0,0.00010566,2]
[360466140,1746803432353,-500.0,0.00010566,2]
[360466141,1746803432362,-500.0,0.00010566,2]
[360466143,1746803432371,-500.0,0.00010566,2]
[360466144,1746803432381,-500.0,0.00010566,2]
[360466145,1746803432390,-500.0,0.00010566,2]
[360466146,1746803432399,-500.0,0.00010566,2]
[360466147,1746803432409,-500.0,0.00010566,2]
[360466148,1746803432418,-614.25250155,0.00010566,2]
[360466149,1746803432427,-500.0,0.00010566,2]
[360466150,1746803432437,-500.0,0.00010566,2]
[360466151,1746803432447,-500.0,0.00010566,2]
[360466152,1746803432456,-185.56396303,0.00010566,2]
[360466153,1746803432465,-500.0,0.00010566,2]
[360466154,1746803432475,-500.0,0.00010566,2]
[360466155,1746803432485,-500.0,0.00010566,2]
[360466156,1746803432494,-321.93076641,0.00010566,2]
[360466157,1746803432503,-500.0,0.00010566,2]
[360466158,1746803432512,-500.0,0.00010566,2]
[360466159,1746803432523,-546.0,0.00010568,2]
[360466160,1746803432533,-712.0,0.00010568,2]
[360466161,1746803432544,-2244.0,0.00010568,2]
[360466162,1746803432553,-214.8,0.00010583,2]
[360466163,1746803432563,-2715.77821513,0.0001059,2]
[360466164,1746803432573,-404.0,0.00010621,2]
[360466165,1746803432583,-417.8480967,0.00010636,2]
[360466166,1746803432592,-500.0,0.00010673,2]
[360466167,1746803432600,-330.27699745,0.00010673,2]
[360466168,1746803433881,-407.70993923,9.472e-05,2]
[360466281,1746803440980,-211.58518651,9.472e-05,2]
[360466288,1746803441039,-270.29107985,9.472e-05,2]
[360466517,1746803443426,-1210.41379441,9.472e-05,2]
[360466519,1746803443436,-169.72300255,0.00010673,2]
[360466521,1746803443446,-500.0,0.00010673,2]
[360466523,1746803443456,-500.0,0.00010673,2]
[360466525,1746803443465,-502.81220811,0.00010673,2]
[360466528,1746803443475,-555.92424168,0.00010673,2]
[360466530,1746803443485,-500.0,0.00010673,2]
[360466532,1746803443495,-500.0,0.00010673,2]
[360466534,1746803443505,-500.0,0.00010673,2]
[360466536,1746803443514,-500.0,0.00010673,2]
[360466539,1746803443524,-500.0,0.00010673,2]
[360466542,1746803443533,-200.0,0.00010673,10]
[360466545,1746803443543,-318.120598,0.00010673,10]
[360466548,1746803443554,-3863.00615525,0.0001068,2]
[360466551,1746803443566,-1640.68983489,0.0001068,2]
[360466555,1746803443579,-30000.0,0.0001068,2]
[360468266,1746803490384,-159.88288019,0.00010166,2]
[360468267,1746803497018,-248.6732456,0.00010166,2]
[360468268,1746803510717,-277.55578805,0.00010166,2]
[360468278,1746803758430,-298.59660331,0.0001,2]
[360468279,1746803766281,-220.22126439,0.0001,2]
[360468281,1746803780706,-222.00598474,0.000101,2]
[360468285,1746803796306,-252.06528718,0.000101,2]
[360468286,1746803810755,-429.29381175,0.000101,2]
[360468287,1746803825666,-250.0,0.000101,2]
[360468288,1746803841422,-244.65217794,0.000101,2]
[360468289,1746803855730,-278.63315376,0.000101,2]
[360468291,1746803870728,-238.318564,0.000101,2]
[360468292,1746803885673,-238.318564,0.000101,2]
[360468293,1746803900755,-156.98344056,0.000101,2]
[360468294,1746803915664,-250.0,0.000101,2]
[360468296,1746803930708,-138.72384904,0.000101,2]
[360468327,1746804364562,-254.527165,0.00016,30]
[360468328,1746804405629,-160.0,0.00013503,22]
[360468329,1746804419455,-160.0,0.00013467,21]
[360468331,1746804424843,-160.0,0.00013431,20]
[360468332,1746804447769,-161.27615096,9.972e-05,2]
[360468333,1746804456395,-254.53534895,9.972e-05,2]
[360468334,1746804470718,-177.87538888,9.972e-05,2]
[360468335,1746804486322,-322.12461112,9.972e-05,2]
[360468336,1746804500720,-462.76566017,9.972e-05,2]
[360468338,1746804516215,-294.24922224,9.972e-05,2]
[360468340,1746804532449,-27.17361768,9.972e-05,2]
[360468373,1746804632184,-300.0,0.00010299,2]
[360468374,1746804632194,-179.0,0.00010299,2]
[360468375,1746804632204,-264.0,0.00010299,2]
[360468376,1746804632215,-1132.0,0.00010299,2]
[360468377,1746804632225,-163.0,0.00010299,2]
[360468392,1746804632406,-1000.0,0.000103,2]
[360468394,1746804632416,-4541.36902797,0.000103,2]
[360468396,1746804632427,-465.00716983,0.00010351,2]
[360468398,1746804632437,-1028.86562103,0.000105,2]
[360468400,1746804632447,-420.6597087,0.00010636,2]
[360468402,1746804632457,-181.33088142,0.00010666,2]
[360468404,1746804632467,-2757.53489239,0.0001067,2]
[360468406,1746804632479,-39133.28120066,0.00010672,2]
[360468408,1746804632497,-9409.0671044,0.00010672,2]
[360468411,1746804632565,-369.10341849,0.0001035,2]
[360468412,1746804632575,-500.0,0.0001035,2]
[360468413,1746804632585,-28820.99644983,0.00010672,2]
[360468414,1746804632595,-500.0,0.00010673,2]
[360468415,1746804632605,-503.39772456,0.00010673,2]
[360468416,1746804632614,-501.26389586,0.00010673,2]
[360468417,1746804632624,-500.0,0.00010673,2]
[360468418,1746804632634,-500.0,0.00010673,2]
[360468419,1746804632643,-501.61233605,0.00010673,2]
[360468420,1746804632653,-500.0,0.00010673,2]
[360468421,1746804632663,-502.57133401,0.00010673,2]
[360468422,1746804632673,-500.0,0.00010673,2]